[Event "45th FIDE Olympiad 2024"]
[Site "Budapest"]
[Date "2024.09.18"]
[Round "7.57"]
[White "Rodshtein, Maxim"]
[Black "Stefansson, Vignir Vatnar"]
[Result "1-0"]
[ECO "D35"]
[WhiteElo "2600"]
[BlackElo "2531"]
[Annotator "TA"]
[PlyCount "72"]
[EventDate "2024.09.05"]
[EventType "team-tourn"]
[EventCountry "HUN"]
[SourceTitle "playchess.com"]
[Source "ChessBase"]
[SourceQuality "1"]
[WhiteTeam "Israel"]
[BlackTeam "Iceland"]
[WhiteTeamCountry "ISR"]
[BlackTeamCountry "ISL"]
[TimeControl "40/5400+30:1800+30"]

{[%evp 12,72,16,8,16,7,0,0,-9,-14,0,0,0,0,0,0,13,0,110,97,92,91,153,152,160,145,575,555,527,542,500,453,473,470,451,464,451,440,381,472,470,473,475,458,479,360,546,535,457,312,493,468,819,780,686,643,606,516,713,713,29982,29983,29962]} 1. c4 {[%emt 0:00:08]} e6 {[%emt 0:02:27]} 2. Nc3 {[%emt 0:01:01]} d5 {[%emt 0:00:09]} 3. d4 {[%emt 0:00:15]} Nf6 {[%emt 0:00:11]} 4. cxd5 {[%emt 0:00:25]} Nxd5 {[%emt 0:00:07]} 5. e4 {[%emt 0:01:34]} Nxc3 {[%emt 0:00:05]} 6. bxc3 {[%emt 0:00:04]} c5 {[%emt 0:00:06]} 7. Rb1 {[%emt 0:01:58]} Be7 {[%emt 0:00:08]} 8. Nf3 {[%emt 0:03:16]} O-O {[%emt 0:00:09]} 9. h4 {[%emt 0:00:38]} b6 {[%emt 0:00:15] The position is equal.} 10. h5 {[%emt 0:01:04]} h6 {[%emt 0:00:04]} 11. Rh3 {[%emt 0:01:45]} cxd4 {[%emt 0:04:41]} 12. cxd4 {[%emt 0:05:59]} Bb7 {[%emt 0:00:35]} 13. Rg3 {[%emt 0:01:22]} Kh8 $1 {[%emt 0:00:32]} 14. Bd3 {[%emt 0:07:35]} Nc6 {[%emt 0:31:36]} (14... Nd7 $11) 15. Qd2 $1 $16 {[%emt 0:11:17][%cal Og3g7] aiming for Rxg7!} Rg8 {[%emt 0:01:30][%cal Oe7d6]} (15... Nxd4 $2 16. Nxd4 Bg5 (16... Qxd4 $2 17. Bb2 $18) 17. Rxg5 hxg5 18. Bb2 $18) 16. Kf1 {[%emt 0:15:41] White is more active.} Rc8 {[%emt 0:07:09] [#]} (16... Nxd4 $2 17. Nxd4 Bg5 (17... Qxd4 $2 18. Bb2 $18) 18. Qb4 $18) (16... Bh4 $142) 17. d5 $1 {[%emt 0:11:36][%mdl 512]} exd5 {[%emt 0:08:28]} 18. exd5 $40 {[%emt 0:00:34][%mdl 128] White attacks with force.} Nb8 {[%emt 0:00:15][%mdl 8192] A mistake that costs the game.} (18... Qxd5 $16 19. Bb2 f6 (19... Qxh5 $2 20. Rh3 $18)) 19. Ne5 $18 {[%emt 0:16:56][%cal Re5f7]} Bxd5 {[%emt 0:06:50] [#]} 20. Qf4 $1 {[%emt 0:00:24] White threatens Bb2 and mate.} Nd7 {[%emt 0:02:43]} 21. Bb2 {[%emt 0:06:36]} (21. Nxf7+ Bxf7 22. Qxf7 Ne5 $11) 21... Nf6 {[%emt 0:05:58][%cal Oe7d6]} (21... Bxa2 22. Nxf7+ Bxf7 23. Qxh6#) 22. Qf5 {[%emt 0:00:22][%cal Og3g6]} Qe8 {[%emt 0:04:23][%cal Oc8c5] [#]} (22... Bxa2 23. Rg6 Rf8 (23... fxg6 24. Nxg6+ Kh7 25. Nf8+ Kh8 26. Qh7+ Nxh7 27. Ng6#) 24. Rxg7 (24. Rxf6 Qxd3+ 25. Qxd3 Bxf6 $18) (24. Rxf6 Qxd3+ 25. Qxd3 Bxf6 $18)) 23. Rg6 $3 {[%emt 0:00:45][%mdl 512]} fxg6 {[%emt 0:09:59]} 24. Nxg6+ {[%emt 0:00:07]} Qxg6 {[%emt 0:00:06]} 25. Qxg6 {[%emt 0:00:42]} (25. hxg6 Rc5 26. Qf4 Rc6 $18) 25... Bc4 {[%emt 0:00:05]} 26. Bxc4 {[%emt 0:01:36]} (26. Re1 Bxd3+ 27. Qxd3 Bd8 $18) 26... Rxc4 {[%emt 0:00:06]} 27. Re1 {[%emt 0:01:07]} Bd8 {[%emt 0:00:43]} 28. Rd1 {[%emt 0:01:32][%cal Od1d8] Threatens to win with Rxd8!} Rb4 {[%emt 0:06:47]} (28... Be7 $142 29. Qf7 Re4) 29. Bc3 {[%emt 0:02:44]} Rc4 {[%emt 0:01:09]} 30. Rd3 {[%emt 0:01:06]} Rc5 {[%emt 0:03:11]} (30... Be7 {was necessary.} 31. Re3 Bd8) 31. f4 {[%emt 0:00:27] Hoping for g4.} Rc6 {[%emt 0:01:48]} (31... Be7 $142 32. Ke2 Bf8) 32. g4 {[%emt 0:01:36][%cal Bg2g4,Bg4g5][%mdl 32]} Rc4 {[%emt 0:02:41]} 33. Be5 {[%emt 0:01:53] g5 would now be deadly.} Bc7 {[%emt 0:00:46]} 34. Rc3 {[%emt 0:01:29]} Rxc3 {[%emt 0:00:45]} 35. Bxc3 {[%emt 0:00:03] g5 would kill now.} Rf8 {[%emt 0:01:01]} 36. g5 {[%emt 0:00:22]} Bd8 {[%emt 0:00:30] Weighted Error Value: White=0.21 (precise) /Black=0.62.  Loses game:     	---       	Black=1      Mistake:       	---       	Black=5      Inaccurate:     	White=1     	Black=1      OK:         	White=9     	Black=12     Best:        	White=2     	Black=1      Strong:       	White=2     	Black=1      Brilliant:      	White=1     	---} 1-0

[Event "45th FIDE Olympiad 2024"]
[Site "Budapest"]
[Date "2024.09.18"]
[Round "7.57"]
[White "Fancy, Stuart"]
[Black "Hasford, John Kojo"]
[Result "0-1"]
[WhiteElo "1921"]
[BlackElo "1956"]
[PlyCount "84"]
[EventDate "2024.09.05"]
[EventType "team-tourn"]
[EventCountry "HUN"]
[WhiteTeam "Papua New Guinea"]
[BlackTeam "Ghana"]
[WhiteTeamCountry "PNG"]
[BlackTeamCountry "GHA"]
[TimeControl "40/5400+30:1800+30"]

1. e4 d6 2. d4 g6 3. Nc3 Bg7 4. Be2 Nf6 5. g4 Nc6 6. g5 Nd7 7. d5 Nd4 8. Bg4 e5 9. Nf3 c5 10. dxc6 bxc6 11. Be3 c5 12. Nd5 Nb6 13. Bxc8 Rxc8 14. Nxb6 Qxb6 15. b3 O-O 16. c3 Ne6 17. Nd2 Qc6 18. Qg4 f5 19. gxf6 Rxf6 20. h4 h5 21. Qe2 Nf4 22. Qc4+ Kh7 23. O-O-O Rcf8 24. Nf3 Ne2+ 25. Qxe2 Rxf3 26. Rd5 Bh6 27. Bxh6 Kxh6 28. Qd2+ R8f4 29. Rxd6 Qxe4 30. Rg1 Rxf2 31. Rdxg6+ Qxg6 32. Rxg6+ Kxg6 33. Qd6+ Kf5 34. Qxc5 Rxa2 35. Kb1 Rff2 36. Qf8+ Kg4 37. Qg7+ Kxh4 38. Qxe5 Rae2 39. Qd4+ Kh3 40. Qd3+ Kg2 41. Qd5+ Kg1 42. Qg5+ Kf1 {0-} 0-1

[Event "45th FIDE Olympiad 2024"]
[Site "Budapest"]
[Date "2024.09.18"]
[Round "7.58"]
[White "Kjartansson, Gudmundur"]
[Black "Gorshtein, Ido"]
[Result "1/2-1/2"]
[ECO "E08"]
[WhiteElo "2478"]
[BlackElo "2543"]
[Annotator "TA"]
[PlyCount "93"]
[EventDate "2024.09.05"]
[EventType "team-tourn"]
[EventCountry "HUN"]
[SourceTitle "playchess.com"]
[Source "ChessBase"]
[SourceQuality "1"]
[WhiteTeam "Iceland"]
[BlackTeam "Israel"]
[WhiteTeamCountry "ISL"]
[BlackTeamCountry "ISR"]
[TimeControl "40/5400+30:1800+30"]

{[%evp 23,93,4,7,16,29,28,19,28,44,29,40,35,63,65,60,4,5,0,13,5,9,12,21,25,31,32,25,40,63,74,71,70,72,73,70,69,64,57,71,69,85,71,70,66,73,67,70,43,43,50,39,39,41,17,18,0,0,0,0,0,0,0,0,0,0,0,0,0,0,0,0,0]} 1. d4 {[%emt 0:00:03]} Nf6 {[%emt 0:00:08]} 2. c4 {[%emt 0:00:07]} e6 {[%emt 0:00:06]} 3. Nf3 {[%emt 0:00:04]} d5 {[%emt 0:00:11]} 4. g3 {[%emt 0:00:09]} Bb4+ {[%emt 0:00:08]} 5. Bd2 {[%emt 0:00:07]} Be7 {[%emt 0:00:40]} 6. Bg2 {[%emt 0:00:06]} O-O {[%emt 0:00:05]} 7. O-O {[%emt 0:00:14]} c6 {[%emt 0:00:02][%cal Bc7c6,Bc6c5][%mdl 32]} 8. Qc2 {[%emt 0:00:27]} b6 {[%emt 0:00:02]} 9. Bf4 {[%emt 0:03:41]} Bb7 {[%emt 0:01:20]} 10. Rd1 {[%emt 0:05:37]} Nbd7 {[%emt 0:00:21]} 11. Nc3 {[%emt 0:05:23]} Rc8 {[%emt 0:15:51]} 12. b3 {[%emt 0:07:17]} c5 {[%emt 0:08:26]} 13. cxd5 {[%emt 0:03:48]} Nxd5 {[%emt 0:06:06]} 14. Nxd5 {[%emt 0:02:33]} Bxd5 {[%emt 0:02:35]} 15. e4 {[%emt 0:02:13]} cxd4 {[%emt 0:01:16]} 16. Qe2 {[%emt 0:00:45]} Bb7 {[%emt 0:04:50]} 17. Nxd4 {[%emt 0:15:15]} Qe8 {[%emt 0:12:53]} (17... e5 18. Nf5 exf4 19. Rxd7 Qxd7 20. Qg4 $15) 18. Nb5 {[%emt 0:08:39][%cal Ob5d6] aiming for Nd6! White is more active.} Ba6 $1 {[%emt 0:01:24]} 19. Bf1 {[%emt 0:01:43]} (19. a4 $1 $14) 19... e5 {[%emt 0:09:24]} 20. Be3 {[%emt 0:08:17] And now Qe1 would win.} Nc5 {[%emt 0:08:29][%cal Bd7c5,Bc5e4,Be4c3,Bc3e2][%mdl 32]} 21. Qc4 {[%emt 0:17:25]} Bxb5 {[%emt 0:09:20]} (21... Qxb5 {simplifies} 22. Qxb5 Bxb5 23. Bxb5 Rfd8) 22. Qxb5 {[%emt 0:00:05]} Nxe4 {[%emt 0:01:16]} 23. Qxe5 {[%emt 0:02:18]} Bf6 {[%emt 0:00:29]} 24. Qxe8 {[%emt 0:00:06]} Rfxe8 {[%emt 0:00:07]} 25. Rac1 {[%emt 0:05:34]} Nc3 {[%emt 0:00:23]} 26. Rd7 {[%emt 0:01:27]} Rxe3 {[%emt 0:06:08]} 27. fxe3 {[%emt 0:00:14] [#] Kg2 would now be deadly.} Ne2+ $1 {[%emt 0:00:08]} 28. Bxe2 {[%emt 0:00:04]} Rxc1+ $16 {[%emt 0:00:06][%mdl 4096] Endgame. KRB-KRB} 29. Kf2 {[%emt 0:00:15]} a5 {[%emt 0:00:31]} 30. Rb7 {[%emt 0:05:07] Rb8+ would kill now.} Kf8 {[%emt 0:01:28]} 31. Rxb6 {[%emt 0:02:08]} Rc7 {[%emt 0:00:19]} 32. Bc4 {[%emt 0:03:52]} Bc3 {[%emt 0:01:19]} 33. Ke2 {[%emt 0:00:29]} Rd7 {[%emt 0:00:37]} 34. a3 {[%emt 0:01:08]} g6 {[%emt 0:01:10]} 35. h4 {[%emt 0:00:26]} h5 {[%emt 0:00:36]} 36. b4 {[%emt 0:00:26]} axb4 {[%emt 0:00:27]} 37. axb4 {[%emt 0:00:03]} Re7 {[%emt 0:02:03]} 38. Bd5 {[%emt 0:01:14]} Bd4 {[%emt 0:00:42] The position is equal.} 39. Rb7 {[%emt 0:00:39] [#] Black must now prevent Rxe7.} Rxe3+ {[%emt 0:00:19]} 40. Kd2 {[%emt 0:00:17]} Re7 {[%emt 0:03:02]} 41. Rxe7 {[%emt 0:03:36]} Kxe7 $11 {[%emt 0:02:32] KB-KB} 42. Ke2 {[%emt 0:00:07]} f5 {[%emt 0:00:23]} 43. Kf3 {[%emt 0:00:02]} Kf6 {[%emt 0:00:08]} 44. b5 {[%emt 0:00:02]} Bb6 {[%emt 0:00:06]} 45. Bc4 {[%emt 0:00:01]} Bc7 {[%emt 0:00:04]} 46. Bd5 {[%emt 0:00:03]} Bb6 {[%emt 0:00:04]} 47. Bc4 {[%emt 0:00:02] Weighted Error Value: White=0.07 (flawless) /Black=0.04 (flawless) .  Mistake:       	White=1     	---        Inaccurate:     	White=1     	Black=1      OK:         	White=14    	Black=11     Best:        	White=3     	---        Strong:       	---       	Black=2} 1/2-1/2

[Event "45th FIDE Olympiad 2024"]
[Site "Budapest"]
[Date "2024.09.18"]
[Round "7.58"]
[White "Anhwere, Bernard"]
[Black "McCoy, Tom"]
[Result "1-0"]
[WhiteElo "1893"]
[BlackElo "1883"]
[Annotator "COMBH"]
[PlyCount "111"]
[EventDate "2024.09.05"]
[EventType "team-tourn"]
[EventCountry "HUN"]
[WhiteTeam "Ghana"]
[BlackTeam "Papua New Guinea"]
[WhiteTeamCountry "GHA"]
[BlackTeamCountry "PNG"]
[TimeControl "40/5400+30:1800+30"]

1. d4 d5 2. Nf3 Nf6 3. e3 e6 4. c4 c6 5. Nc3 Bd6 6. Bd3 O-O 7. O-O Nbd7 8. e4 dxe4 9. Nxe4 Nxe4 10. Bxe4 f5 11. Bc2 Nf6 12. Re1 Re8 13. Bg5 h6 14. Bxf6 Qxf6 15. c5 Bc7 16. Ne5 b6 17. cxb6 axb6 18. Nxc6 Bb7 19. Ne5 Qg5 20. f3 Rad8 21. Qd3 Rd6 22. Rad1 Red8 23. Qc4 Bb8 24. Kh1 Rd5 25. Bb3 Qf4 26. Qc1 Bxe5 27. Rxe5 Qxc1 28. Rxc1 Rxe5 29. dxe5 Bd5 30. Rd1 Kf7 31. Bxd5 exd5 32. f4 Rc8 33. h3 Ke6 34. Rd3 Rc4 35. g3 Rc1+ 36. Kg2 Rc2+ 37. Kf3 Rxb2 38. Rb3 Rxa2 39. Rxb6+ Kf7 40. Rb3 Rh2 41. Rb7+ Kf8 42. Rd7 Rd2 43. g4 fxg4+ 44. Kxg4 d4 45. Kf5 g5 46. Kf6 Ke8 47. e6 gxf4 48. Rh7 Kd8 49. Rh8+ Kc7 50. e7 Re2 51. e8=Q Rxe8 52. Rxe8 d3 53. Re1 f3 54. Ke5 d2 55. Rd1 f2 56. Ke4 1-0

[Event "45th FIDE Olympiad 2024"]
[Site "Budapest"]
[Date "2024.09.18"]
[Round "7.59"]
[White "Nabaty, Tamir"]
[Black "Stefansson, Hannes"]
[Result "1-0"]
[ECO "D30"]
[WhiteElo "2630"]
[BlackElo "2471"]
[Annotator "TA"]
[PlyCount "83"]
[EventDate "2024.09.05"]
[EventType "team-tourn"]
[EventCountry "HUN"]
[SourceTitle "playchess.com"]
[Source "ChessBase"]
[SourceQuality "1"]
[WhiteTeam "Israel"]
[BlackTeam "Iceland"]
[WhiteTeamCountry "ISR"]
[BlackTeamCountry "ISL"]
[TimeControl "40/5400+30:1800+30"]

{[%evp 9,83,8,14,10,9,0,6,0,3,4,4,0,6,0,5,2,8,11,6,12,8,0,0,0,0,0,0,0,0,0,0,0,0,0,29,-49,125,158,170,143,151,132,208,167,234,227,257,278,257,272,239,227,297,275,258,243,350,311,436,245,746,1381,1445,1458,1549,1334,1564,1339,1206,1066,4393,1953,5193,3121,1929,1773]} 1. d4 {[%emt 0:00:05]} Nf6 {[%emt 0:00:18]} 2. c4 {[%emt 0:00:15]} e6 {[%emt 0:00:22]} 3. Nf3 {[%emt 0:00:11]} d5 {[%emt 0:00:21]} 4. e3 {[%emt 0:00:21]} Bd6 {[%emt 0:03:04]} 5. c5 {[%emt 0:04:50]} Be7 {[%emt 0:00:23]} 6. b4 {[%emt 0:00:18]} O-O {[%emt 0:02:45]} 7. Bb2 {[%emt 0:00:17]} b6 {[%emt 0:02:53]} 8. Nbd2 {[%emt 0:00:35] The position is equal.} a5 {[%emt 0:03:38]} 9. a3 {[%emt 0:00:28]} c6 {[%emt 0:00:52]} 10. Be2 {[%emt 0:02:19]} Ba6 {[%emt 0:01:46]} 11. O-O {[%emt 0:01:53]} Qc8 {[%emt 0:06:39]} 12. cxb6 {[%emt 0:04:38]} Nbd7 {[%emt 0:04:39]} 13. bxa5 {[%emt 0:18:28] And now Bc3 would win.} (13. Bc3 {is more complex.} axb4 14. Bxb4 Bxb4 15. axb4 Qb7 16. Ra5) 13... Bxe2 {[%emt 0:00:19]} 14. Qxe2 {[%emt 0:00:06] Strongly threatening Nb3.} Rxa5 {[%emt 0:00:14]} 15. Bc3 {[%emt 0:06:58]} Rxa3 {[%emt 0:09:12]} 16. Rxa3 {[%emt 0:00:33]} Bxa3 {[%emt 0:00:05]} 17. Ra1 $1 {[%emt 0:00:05]} Bd6 {[%emt 0:01:58]} 18. Qa6 {[%emt 0:06:23]} Qxa6 {[%emt 0:03:25]} 19. Rxa6 {[%emt 0:00:04] Threatens to win with b7.} Rb8 {[%emt 0:01:06]} 20. Ba5 {[%emt 0:00:51][%cal Oe3e4]} Kf8 {[%emt 0:07:57]} 21. Nb3 {[%emt 0:04:18][%cal Of3e5] Ne5! would now be deadly.} Ne4 {[%emt 0:13:10] [#]} 22. Ne5 {[%emt 0:04:58]} Nxe5 $2 {[%emt 0:01:20]} (22... Bxe5 $15 23. dxe5 Ke8) 23. dxe5 $16 {[%emt 0:00:23] White leaves nothing to chance now.} Nc5 {[%emt 0:00:23]} ({Reject} 23... Bxe5 24. f3 Nf6 25. Bb4+ Ke8 26. f4 $18 (26. Na5 c5 $11)) 24. Bb4 {[%emt 0:07:53]} Nxa6 {[%emt 0:00:14]} 25. Bxd6+ {[%emt 0:00:02]} Ke8 {[%emt 0:00:09]} 26. Bxb8 {[%emt 0:00:03]} Nxb8 $18 {[%emt 0:00:05][%mdl 4096] Endgame. KN-KN} 27. Nc5 {[%emt 0:00:05]} Nd7 {[%emt 0:05:11] [#]} 28. b7 $1 {[%emt 0:01:07] Intending Nxd7 and mate.} Nb8 {[%emt 0:00:05]} 29. Kf1 {[%emt 0:00:57]} Kd8 {[%emt 0:00:08]} 30. Ke2 {[%emt 0:00:05]} Kc7 {[%emt 0:00:10] [#]} 31. Kd3 $1 {[%emt 0:00:04]} Kb6 {[%emt 0:00:40]} 32. Kd4 {[%emt 0:00:08]} g6 {[%emt 0:05:08]} (32... h5 $142 33. h3 g6) 33. g4 {[%emt 0:01:51][%cal Bg2g4,Bg4h5][%mdl 32]} Kb5 {[%emt 0:05:36]} (33... Ka5 $142 34. f4 Kb5) 34. h4 {[%emt 0:04:19]} (34. f4 $142 Ka5 35. e4) 34... h6 $2 {[%emt 0:06:38]} (34... h5) 35. h5 {[%emt 0:04:24] White is clearly winning.} gxh5 {[%emt 0:00:43]} 36. gxh5 {[%emt 0:00:02]} Ka5 {[%emt 0:02:04]} 37. f4 {[%emt 0:05:25]} Kb6 {[%emt 0:02:27]} 38. e4 {[%emt 0:01:31]} dxe4 {[%emt 0:03:40]} 39. Nxe4 {[%emt 0:00:06]} c5+ {[%emt 0:03:49]} 40. Kc4 {[%emt 0:06:41]} (40. Nxc5 Nc6+ 41. Kc4 Na5+ 42. Kd3 Nxb7 43. Nd7+ Kc7 $14) 40... Kxb7 {[%emt 0:02:40]} 41. Nd6+ {[%emt 0:30:40]} ({Stronger than} 41. Kxc5 Kc7 $11) 41... Kc6 {[%emt 0:30:08]} 42. Nxf7 {[%emt 0:00:05] Weighted Error Value: White=0.16 (very precise) /Black=0.34.  Mistake:       	White=2     	Black=4      Inaccurate:     	---       	Black=3      OK:         	White=8     	Black=10     Best:        	White=5     	Black=5      Strong:       	White=3     	---} 1-0

[Event "45th FIDE Olympiad 2024"]
[Site "Budapest"]
[Date "2024.09.18"]
[Round "7.59"]
[White "Jones, Rupert"]
[Black "Fomevor, Cephas Clinton"]
[Result "0-1"]
[WhiteElo "1849"]
[BlackElo "1873"]
[Annotator "COMBH"]
[PlyCount "62"]
[EventDate "2024.09.05"]
[EventType "team-tourn"]
[EventCountry "HUN"]
[WhiteTeam "Papua New Guinea"]
[BlackTeam "Ghana"]
[WhiteTeamCountry "PNG"]
[BlackTeamCountry "GHA"]
[TimeControl "40/5400+30:1800+30"]

1. e4 c6 2. d4 d5 3. e5 c5 4. c4 cxd4 5. Nf3 Nc6 6. cxd5 Qa5+ 7. Qd2 Qxd5 8. Nc3 Qd8 9. Nb5 e6 10. Qf4 Bc5 11. Nd6+ Bxd6 12. exd6 Qf6 13. Bb5 Bd7 14. Bxc6 Bxc6 15. Qxd4 Qxd4 16. Nxd4 Bxg2 17. Rg1 Be4 18. Rxg7 Bg6 19. Nxe6 fxe6 20. Bg5 Be4 21. Rd1 Bd5 22. d7+ Kf8 23. Rxg8+ Rxg8 24. d8=Q+ Rxd8 25. Bxd8 Rg1+ 26. Kd2 Rg2 27. Ke3 Rxh2 28. Bf6 a6 29. a3 Kf7 30. Bd8 Rh3+ 31. Kf4 Rf3+ {0-} 0-1

[Event "45th FIDE Olympiad 2024"]
[Site "Budapest"]
[Date "2024.09.18"]
[Round "7.60"]
[White "Gretarsson, Helgi Ass"]
[Black "Postny, Evgeny"]
[Result "1/2-1/2"]
[ECO "D31"]
[WhiteElo "2450"]
[BlackElo "2577"]
[Annotator "TA"]
[PlyCount "164"]
[EventDate "2024.09.05"]
[EventType "team-tourn"]
[EventCountry "HUN"]
[SourceTitle "playchess.com"]
[Source "ChessBase"]
[SourceQuality "1"]
[WhiteTeam "Iceland"]
[BlackTeam "Israel"]
[WhiteTeamCountry "ISL"]
[BlackTeamCountry "ISR"]
[TimeControl "40/5400+30:1800+30"]

{[%evp 62,164,99,44,110,115,87,110,122,66,77,42,79,95,92,0,0,0,1,0,0,0,0,0,0,-47,-7,-7,-7,-7,-7,-7,-7,-7,-7,-7,0,0,0,0,0,0,0,0,0,0,0,0,0,0,0,0,0,0,0,0,0,0,0,0,0,0,0,0,0,0,0,0,0,0,0,0,0,0,0,0,0,0,0,0,0,0,0,0,0,0,0,0,0,0,0,0,0,0,0,0,0,0,0,0,0,0,0,0,0]} 1. c4 {[%emt 0:00:03]} e6 {[%emt 0:00:43]} 2. Nc3 {[%emt 0:00:13]} d5 {[%emt 0:00:06]} 3. d4 {[%emt 0:00:07]} Be7 {[%emt 0:00:23]} 4. cxd5 {[%emt 0:01:32]} exd5 {[%emt 0:00:04]} 5. Bf4 {[%emt 0:00:04]} c6 {[%emt 0:00:44]} 6. e3 {[%emt 0:00:07]} Bf5 {[%emt 0:00:27]} 7. g4 {[%emt 0:01:26]} Be6 {[%emt 0:00:39]} 8. Qb3 {[%emt 0:01:50]} Qb6 {[%emt 0:05:06]} 9. f3 {[%emt 0:01:47]} Qxb3 {[%emt 0:10:50]} 10. axb3 {[%emt 0:00:06]} Nd7 {[%emt 0:00:07]} 11. h4 {[%emt 0:26:09]} Ngf6 {[%emt 0:19:19]} 12. Bd3 {[%emt 0:10:13]} O-O {[%emt 0:00:19]} 13. Nge2 {[%emt 0:00:21]} h5 {[%emt 0:10:23]} 14. g5 {[%emt 0:07:44]} Ne8 {[%emt 0:00:05]} 15. Bh2 {[%emt 0:08:28]} g6 {[%emt 0:01:52]} 16. Nf4 {[%emt 0:02:51]} Ng7 {[%emt 0:00:15]} 17. Kd2 {[%emt 0:02:00]} Rfe8 {[%emt 0:07:42]} 18. Nxe6 {[%emt 0:06:53]} Nxe6 {[%emt 0:00:12]} 19. f4 {[%emt 0:00:05]} Ndf8 {[%emt 0:04:49]} 20. f5 {[%emt 0:05:21]} gxf5 {[%emt 0:00:14]} 21. Bxf5 {[%emt 0:00:05]} Ng6 {[%emt 0:08:32]} 22. Bg3 {[%emt 0:00:50]} a6 {[%emt 0:01:03]} 23. Ne2 {[%emt 0:05:21]} Bf8 {[%emt 0:05:17]} 24. Raf1 {[%emt 0:03:41]} Bg7 {[%emt 0:07:59]} 25. Bf2 {[%emt 0:04:28]} c5 {[%emt 0:01:56]} 26. Ng3 {[%emt 0:00:12]} cxd4 {[%emt 0:01:10]} 27. Nxh5 {[%emt 0:00:07]} dxe3+ {[%emt 0:01:33]} 28. Bxe3 {[%emt 0:00:01]} d4 {[%emt 0:05:16]} 29. Bg1 {[%emt 0:03:33]} Rad8 {[%emt 0:02:49]} 30. Rh3 {[%emt 0:01:02]} Rd5 {[%emt 0:02:59]} 31. Be4 {[%emt 0:04:30]} Re5 {[%emt 0:00:21]} 32. Bd3 {[%emt 0:00:08]} (32. Bxb7 $16 a5 33. Nxg7 Kxg7 34. Bc6) 32... b5 {[%emt 0:01:11]} (32... Bh8 $1 $14) 33. Nxg7 $16 {[%emt 0:02:43]} Kxg7 {[%emt 0:00:09]} 34. Rhf3 {[%emt 0:00:07]} Nxh4 {[%emt 0:01:18]} 35. Rxf7+ {[%emt 0:01:32]} Kg8 {[%emt 0:00:01]} 36. Bh7+ {[%emt 0:02:06]} Kh8 {[%emt 0:00:02]} 37. g6 {[%emt 0:00:14]} Rg5 {[%emt 0:00:54]} 38. R7f6 {[%emt 0:00:34]} (38. Re1 $16 {Threatening mate with Bxd4+.} Nf5 39. Rxf5 Rxf5 40. Bxd4+ Nxd4 41. Rxe8+ Kg7 42. Re7+ Kh6 43. Bg8) 38... Kg7 $11 {[%emt 0:01:24]} 39. Rf7+ {[%emt 0:00:35]} Kh6 {[%emt 0:00:28]} 40. Bf2 {[%emt 0:00:47]} Nxg6 {[%emt 0:01:00]} 41. Rh1+ {[%emt 0:16:39]} Rh5 {[%emt 0:00:07]} 42. Rxh5+ {[%emt 0:00:38]} Kxh5 {[%emt 0:00:04]} 43. Rf5+ {[%emt 0:00:15]} (43. Rd7 $11) 43... Kh6 {[%emt 0:01:26]} 44. Bxg6 $1 {[%emt 0:00:09]} (44. Rf7 Ng5 45. Ra7 Nxh7 $19) 44... Kxg6 {[%emt 0:00:05]} 45. Re5 {[%emt 0:00:06]} ({But not} 45. Rd5 Kf7 $19 (45... Nf4 46. Rd6+ Kf5 47. Bxd4 $11)) 45... Kf7 {[%emt 0:00:41]} 46. Rf5+ {[%emt 0:00:05]} Ke7 {[%emt 0:02:53]} 47. Rd5 {[%emt 0:00:18]} Rh8 {[%emt 0:03:44]} 48. Bxd4 {[%emt 0:00:11]} Rh2+ {[%emt 0:00:11]} 49. Kc1 {[%emt 0:01:36]} Nf4 {[%emt 0:01:09]} 50. Bc5+ {[%emt 0:00:08]} Ke6 {[%emt 0:00:17]} 51. Rd6+ {[%emt 0:01:15]} Ke5 {[%emt 0:00:06]} 52. b4 {[%emt 0:00:30]} Rg2 {[%emt 0:04:20]} 53. Kb1 {[%emt 0:03:39]} Rg6 {[%emt 0:00:54]} 54. Rd2 {[%emt 0:01:23]} Ke4 {[%emt 0:05:09]} 55. Rd4+ {[%emt 0:01:04]} Kf5 {[%emt 0:01:00]} 56. Rd2 {[%emt 0:00:08]} Re6 {[%emt 0:00:22]} 57. Ka2 {[%emt 0:00:46]} Ke4 {[%emt 0:00:48]} 58. Kb3 {[%emt 0:00:28]} Rg6 {[%emt 0:00:18]} 59. Rd4+ {[%emt 0:00:45]} Ke5 {[%emt 0:00:08]} 60. Rd2 {[%emt 0:00:08]} Ke4 {[%emt 0:01:42]} 61. Rd4+ {[%emt 0:00:12]} Kf5 {[%emt 0:00:16]} 62. Rd2 {[%emt 0:00:10]} Rg3+ {[%emt 0:00:27]} 63. Ka2 {[%emt 0:03:32]} Nd3 {[%emt 0:00:12]} 64. Kb1 {[%emt 0:00:09]} Ne5 {[%emt 0:04:08]} 65. Rd6 {[%emt 0:00:43]} Rg6 {[%emt 0:00:35]} 66. Rd2 {[%emt 0:00:08]} Nc4 {[%emt 0:00:50]} 67. Re2 {[%emt 0:01:44]} Re6 {[%emt 0:00:29]} 68. Rf2+ {[%emt 0:01:16]} Ke4 {[%emt 0:00:06]} 69. Kc2 {[%emt 0:00:10]} Rg6 {[%emt 0:01:16]} 70. Rh2 {[%emt 0:01:39]} Ne5 {[%emt 0:00:44]} 71. Rh4+ {[%emt 0:00:50]} Rg4 {[%emt 0:00:23]} 72. Rh2 {[%emt 0:00:42]} Rg6 {[%emt 0:04:15]} 73. Rh4+ {[%emt 0:00:07]} Kd5 {[%emt 0:00:07]} 74. Rd4+ {[%emt 0:03:25]} Kc6 {[%emt 0:00:07]} 75. Re4 {[%emt 0:00:01]} Nd7 {[%emt 0:00:39]} 76. Bd4 {[%emt 0:01:24]} Kd5 {[%emt 0:00:24]} 77. Rh4 {[%emt 0:00:04]} Nb8 {[%emt 0:01:39]} 78. Bc3 {[%emt 0:00:09]} Nc6 {[%emt 0:00:27]} 79. Rh3 {[%emt 0:01:28]} Rg2+ {[%emt 0:00:34]} 80. Kb3 {[%emt 0:00:32]} Rg5 {[%emt 0:00:51]} 81. Kc2 {[%emt 0:00:15]} Rf5 {[%emt 0:00:15]} 82. Kb3 {[%emt 0:00:12]} Rg5 {[%emt 0:00:58]} 1/2-1/2